Cogmind - Beta 15 @@@ ROGUE MODE // 2025.08.18 @ 23:57:03 Player: shapeshifter Result: Destroyed by S-27 Virus with Autogun Performance ------------- Evolutions (6) 3000 Regions Visited (10) 2000 Robots Destroyed (107) 535 Value Destroyed (3715) 3715 Prototype IDs (15) 300 Alien Tech Used (0) 0 Bonus (74) 74 TOTAL SCORE: 9624 Bonus ------- Follower Combat Kills 74 Cogmind --------- Core Integrity 0/1150 Matter 298/300 Energy 98/100 System Corruption 20% Temperature Cool (0) Movement Core (50) Location -4/Upper Caves Parts ------- > --- POWER (2) -------- (None) > --- PROPULSION (7) --- (None) > --- UTILITY (8) ------ Machine Analyzer > --- WEAPON (2) ------- (None) > --- INVENTORY (5) ---- Medium Storage Unit Huge Storage Unit Improved Terrain Scanner Advanced Transmission Jammer Peak State ------------ > --- POWER ------------ Fusion-Neutrino Core > --- PROPULSION ------- Treaded Antigrav-VTOL Exoskeleton > --- UTILITY ---------- Armored Scrap Engine Advanced Heat Sink Machine Analyzer Improved Terrain Scanner Improved Phase Shifter Improved Focal Shield Improved System Shield > --- WEAPON ----------- EM HERF Construct/C > --- INVENTORY -------- Medium Storage Unit Huge Storage Unit Advanced Transmission Jammer Improved Medium Armor Plating EM Disruption Field [Rating: 89] Favorites ----------- Power Constructs Engine Cooled Ion Engine Power Core Constructs Reactor Cold Fusion Reactor Propulsion Light Treads Treads Light Treads Leg Multireflex Exoskeleton Wheel Wheel Utility Improved Signal Interpreter Device Armored Scrap Engine Storage Medium Storage Unit Processor Improved Signal Interpreter Hackware Hacking Suite Protection Hardened Medium Armor Plating Weapon Constructs Energy Gun Heavy EM Shotgun Energy Cannon Constructs Ballistic Gun Assault Rifle Launcher Grenade Launcher Build | -11 -10 -10 -10 -8 -8 -8 -6 -5 -4 -4 ------- Run | Yrd Mat Min Sub Mat Sto Rec Fac Fac Fac Upp Slots Evolved 12 | . . . . 4 . . 4 2 2 . Power 1 | . . . . . . . 1 . . . Propulsion 5 | . . . . 1 . . 2 1 1 . Utility 6 | . . . . 3 . . 1 1 1 . Weapon . | . . . . . . . . . . . Parts Attached 68 | 7 1 1 4 10 25 4 5 4 7 . Power 9 | 1 . 1 . 2 5 . . . . . Engine 8 | 1 . 1 . 2 4 . . . . . Core . | . . . . . . . . . . . Reactor 1 | . . . . . 1 . . . . . Propulsion 16 | 2 . . 2 1 8 1 1 1 . . Treads 11 | 2 . . . . 8 1 . . . . Leg 3 | . . . . 1 . . 1 1 . . Wheel 2 | . . . 2 . . . . . . . Hover . | . . . . . . . . . . . Flight . | . . . . . . . . . . . Utility 27 | 2 . . 1 6 3 3 3 2 7 . Device 13 | 1 . . . 3 . 2 1 1 5 . Storage 5 | 1 . . . . 2 1 . . 1 . Processor 4 | . . . . 2 . . 1 1 . . Hackware 3 | . . . . 1 . . 1 . 1 . Protection 2 | . . . 1 . 1 . . . . . Artifact . | . . . . . . . . . . . Weapon 16 | 2 1 . 1 1 9 . 1 1 . . Energy Gun 6 | 1 . . 1 . 3 . 1 . . . Energy Cannon 3 | . . . . . 3 . . . . . Ballistic Gun 4 | 1 . . . 1 2 . . . . . Ballistic Cannon . | . . . . . . . . . . . Launcher 3 | . 1 . . . 1 . . 1 . . Special Weapon . | . . . . . . . . . . . Impact Weapon . | . . . . . . . . . . . Slashing Weapon . | . . . . . . . . . . . Piercing Weapon . | . . . . . . . . . . . Special Melee Weapon . | . . . . . . . . . . . Unidentified Prototypes 10 | . . . . . 6 1 1 2 . . Parts Lost 54 | . . 1 5 2 9 1 13 8 14 1 Power 10 | . . 1 1 . 1 . 4 1 2 . Propulsion 17 | . . . 1 1 5 . 4 3 3 . Utility 15 | . . . 1 1 2 . 2 1 7 1 Weapon 12 | . . . 2 . 1 1 3 3 2 . Highest Loss Streak 7 | . . 1 3 1 2 1 6 3 7 1 To Critical Strikes 2 | . . . . . . . . 1 1 . Average Backups 6 | 3 6 7 7 5 6 7 7 6 4 4 Power . | . 1 . . . . 1 . . . . Propulsion 1 | 1 2 2 1 1 1 2 . . . . Utility 2 | . 1 2 3 2 1 1 4 4 4 4 Weapon 1 | . 1 2 1 1 1 2 . . . . Tool/Special . | . . . . . . . . . . . Unused Backups 18 | . . 4 . . 5 1 3 2 3 . Power . | . . . . . . . . . . . Propulsion 2 | . . . . . 1 1 . . . . Utility 9 | . . 1 . . 3 . 2 . 3 . Weapon 5 | . . 3 . . 1 . 1 . . . Tool/Special 2 | . . . . . . . . 2 . . Average Slot Usage (%) 78 | . 100 99 86 82 94 92 57 60 45 10 Engine 6 | . 14 13 1 7 7 9 5 2 . . Treads 15 | . 28 28 19 3 20 26 5 . . . Leg 2 | . . . . 3 2 . 2 8 2 . Wheel 1 | . . . 7 15 1 . 1 . . . Device 9 | . 14 14 9 4 3 8 11 11 15 . Storage 8 | . 14 14 14 9 9 9 5 4 2 . Processor 10 | . . . . 10 18 18 9 15 8 5 Hackware 3 | . . . . 7 9 5 1 . 3 5 Protection 1 | . . . 4 2 4 . . . . . Energy Gun 7 | . 11 12 14 6 6 9 6 3 1 . Energy Cannon 2 | . . . . . 6 7 . 1 1 . Ballistic Gun 4 | . 14 14 10 7 3 . 2 1 . . Launcher 1 | . 2 1 3 4 . . . 2 . . Peak Build Rating 89 | 7 8 8 10 28 40 69 64 78 89 9 Average Rating 38 | 4 7 7 8 22 32 40 51 68 74 9 On Entrance 23 | . 7 8 8 10 28 32 51 47 63 9 Naked Turns . | . . . . . . . . . . . Heaviest Build 100 | 15 16 16 14 21 38 100 30 34 42 . Greatest Support 91 | 40 40 40 40 26 66 60 76 91 63 3 Greatest Overweight (x) 2 | . . . . . 1 1 2 2 1 . Average Overweight (x) . | . . . . . . . . . . . Largest Inventory Capacity 25 | 8 8 8 8 8 10 25 10 25 10 5 Average Capacity 8 | 7 8 8 8 8 9 10 10 9 7 5 Most Carried 25 | 6 8 8 8 8 10 25 10 8 8 4 Average Carried 7 | 3 6 7 7 7 8 9 8 6 4 4 Final Capacity 10 | 8 8 8 8 8 10 10 10 5 5 5 Final Carried 10 | 5 8 8 8 8 10 10 6 5 4 4 Scrap Engine Consumption 144 | . . . . . . 23 50 40 31 . Constructs Created 13 | . . . . . . 1 6 4 2 . Constructs Modified 44 | . . . . . . 3 21 6 14 . Class Distribution -------------------- 85% | Mutant 8% | Construct 6% | Skirmisher Dominant Class ---------------- Mutant | -10/Materials Mutant | -10/Mines Mutant | -10/Subcaves Mutant | -8/Materials Mutant | -8/Storage Mutant | -8/Recycling Construct | -6/Factory Skirmisher | -5/Factory Mutant | -4/Factory Mutant | -4/Upper Caves Resources | -11 -10 -10 -10 -8 -8 -8 -6 -5 -4 -4 ----------- Run | Yrd Mat Min Sub Mat Sto Rec Fac Fac Fac Upp Matter Collected 1717 | 215 112 137 95 . 678 90 85 192 113 . Remotely . | . . . . . . . . . . . Salvage Created 4547 | 19 252 174 170 139 1319 568 785 509 612 . Parts 218 | 3 23 15 11 8 62 12 31 19 34 . Haulers Intercepted 5 | . 1 . . . 3 . . . 1 . Recyclers Shooed . | . . . . . . . . . . . Parts Field Recycled . | . . . . . . . . . . . Retrieved Matter . | . . . . . . . . . . . Parts Self-Destructed 16 | . . . 16 . . . . . . . Prevented . | . . . . . . . . . . . Kills | -11 -10 -10 -10 -8 -8 -8 -6 -5 -4 -4 ------- Run | Yrd Mat Min Sub Mat Sto Rec Fac Fac Fac Upp Combat Hostiles Destroyed 79 | . 6 6 7 4 25 1 11 7 12 . Guns 37 | . 6 3 5 1 9 . 6 5 2 . Cannons 16 | . . . . . 10 1 3 1 1 . AOE 19 | . . 3 2 3 4 . 1 . 6 . Classes Destroyed 15 | 1 5 . 2 . 4 1 2 . . . Worker 7 | . 2 . . . 2 . . . 3 . Builder 3 | . . . . . 1 . 2 . . . Tunneler 2 | 1 . 1 . . . . . . . . Hauler 5 | . 1 . . . 3 . . . 1 . Recycler 8 | . . . . . . 7 1 . . . Operator 1 | . 1 . . . . . . . . . Watcher 2 | . . . . . 1 . . . 1 . Swarmer 22 | . 3 4 3 . 3 . . . 9 . Grunt 30 | . 3 2 . 3 14 . 5 3 . . Brawler 1 | . . . . . 1 . . . . . Duelist 1 | . . . . . 1 . . . . . Sentry 12 | . . . 1 1 6 1 1 2 . . Hunter 3 | . . . . . . . 1 . 2 . Programmer 7 | . . . . . . . 4 2 1 . Subdweller 3 | . . . 3 . . . . . . . Best Kill Streak 8 | 1 4 3 3 3 5 6 3 2 8 . Combat Bots Only 5 | . 3 3 3 3 3 1 3 2 5 . Max Kills in Single Turn 4 | 1 1 2 1 1 2 4 1 2 4 . Gunslinging . | . . . . . . . . . . . Exploded 4 | . . 2 1 1 1 . 1 . 4 . Melee . | . . . . . . . . . . . Uniques/NPCs Destroyed . | . . . . . . . . . . . Combat | -11 -10 -10 -10 -8 -8 -8 -6 -5 -4 -4 -------- Run | Yrd Mat Min Sub Mat Sto Rec Fac Fac Fac Upp Hostile Shots Fired 1029 | . 25 42 39 19 185 5 279 103 306 26 Missed 335 | . 3 13 10 7 49 . 84 42 113 14 Hits 694 | . 22 29 29 12 136 5 195 61 193 12 Melee 4 | . . . . . 4 . . . . . Projectile 690 | . 22 29 29 12 132 5 195 61 193 12 AOE 7 | . . . . . . 5 . 2 . . Critical Strikes 31 | . . . 1 1 5 . 7 5 11 1 Damage Taken 12399 | . 217 303 393 179 2208 302 3355 1672 3547 223 Core 2711 | . 30 70 134 15 291 63 560 384 953 211 Absorbed by Shields . | . . . . . . . . . . . Ignored by Resistances 67 | . . . . . . . . . 67 . Regen/Repaired (Parts) 1529 | . . . . . . 15 390 244 880 . Core Remaining (%) 46 | 100 . . 6 . . 32 34 61 . . Volleys Fired 374 | 1 29 16 20 9 97 9 85 59 49 . Largest 2 | 2 2 2 2 2 2 2 2 2 1 . Hottest 171 | 60 60 60 85 90 120 125 171 93 88 . Shots Fired 558 | 2 55 32 33 13 159 19 126 70 49 . Gun 390 | 2 52 32 29 8 78 10 99 55 25 . Cannon 150 | . . . . . 77 9 27 13 24 . Launcher 18 | . 3 . 4 5 4 . . 2 . . Special . | . . . . . . . . . . . Kinetic 195 | 1 26 16 13 4 43 . 46 46 . . Thermal 200 | . . . 16 4 90 10 80 . . . Explosive 16 | . 3 . 4 5 4 . . . . . Electromagnetic 147 | 1 26 16 . . 22 9 . 24 49 . Robot Hit Streak 12 | 1 9 3 5 9 12 7 9 11 8 . Robot Miss Streak 7 | 1 4 4 5 3 7 1 3 2 3 . Penetration Max 1 | . . . . . . . . 1 . . Secondary Targets 7 | . 2 2 2 . . . 1 . . . Max Gunslinging Chain 1 | . 1 1 1 . . . 1 . . . Shots Hit Robots 337 | 1 28 17 15 8 97 14 82 48 27 . Core Hits 190 | 1 13 9 9 8 54 12 43 17 24 . Critical Kills 6 | . . . . . 1 . . 5 . . Critical Parts Destroyed 10 | . . . . . . . . 10 . . Critical Strikes 18 | . . . 1 . 1 . . 16 . . Burn 1 | . . . 1 . . . . . . . Meltdown 1 | . . . . . 1 . . . . . Destroy 16 | . . . . . . . . 16 . . Melee Attacks . | . . . . . . . . . . . Impact . | . . . . . . . . . . . Slashing . | . . . . . . . . . . . Piercing . | . . . . . . . . . . . Sneak Attacks . | . . . . . . . . . . . Combat Hostiles . | . . . . . . . . . . . Follow-up Attacks . | . . . . . . . . . . . Damage Inflicted 8912 | 10 488 343 517 352 2593 385 2070 643 1511 . Guns 3813 | 10 402 198 181 125 935 150 1014 535 263 . Cannons 2397 | . . . . . 1108 150 749 76 314 . Explosions 2678 | . 86 145 336 227 550 85 283 32 934 . Melee . | . . . . . . . . . . . Ramming 24 | . . . . . . . 24 . . . Kinetic 2266 | 10 195 68 59 75 534 . 953 372 . . Thermal 3027 | . 47 145 122 50 1310 260 1093 . . . Explosive 1702 | . 39 . 336 227 459 . . . 641 . Electromagnetic 1893 | . 207 130 . . 290 125 . 271 870 . Impact . | . . . . . . . . . . . Slashing . | . . . . . . . . . . . Piercing . | . . . . . . . . . . . Highest Corruption 20 | . . . . . 1 1 9 5 20 20 Average Corruption 3 | . . . . . 1 1 7 3 12 20 Corruption Purged . | . . . . . . . . . . . Corruption Blocked . | . . . . . . . . . . . Effects 62 | . . . . . 9 15 10 11 11 6 Message Errors 14 | . . . . . . 5 1 4 4 . Matter Fused 14 | . . . . . 2 4 3 . 4 1 Heat Flow Errors 10 | . . . . . 2 3 2 2 . 1 Energy Discharges 5 | . . . . . 1 1 1 2 . . Parts Rejected 1 | . . . . . . . . . 1 . Data Loss (minor) 10 | . . . . . 2 1 . 2 1 4 Data Loss (major) 1 | . . . . . . . . 1 . . Misfires 2 | . . . . . 1 1 . . . . Alerts 1 | . . . . . 1 . . . . . Misdirections 1 | . . . . . . . . . 1 . Weapon Failures 3 | . . . . . . . 3 . . . Overload Shots . | . . . . . . . . . . . Overflow Damage 451 | . 17 . . . 13 1 260 . 160 . Projectiles 26 | . . . . . . . 26 . . . Explosions 425 | . 17 . . . 13 1 234 . 160 . Melee . | . . . . . . . . . . . Knockbacks 17 | . . . . . . . 17 . . . Impact . | . . . . . . . . . . . Kinetic 15 | . . . . . . . 15 . . . Secondary 2 | . . . . . . . 2 . . . Self-Inflicted Damage 522 | . 12 20 . . 216 . 144 109 21 . Shots 13 | . 1 1 . . 6 . 2 2 1 . Rammed . | . . . . . . . . . . . Targets Rammed 10 | . . . . . . . 10 . . . Kicked 10 | . . . . . . . 10 . . . Crushed . | . . . . . . . . . . . Highest Temperature 347 | . 54 60 . 81 313 334 327 155 347 223 Average Temperature 78 | . 28 28 . 45 68 84 97 34 136 115 Received Heat Transfer 2426 | . 72 75 54 90 684 . 829 267 300 55 Effects 2 | . . . . . . . 1 . 1 . Energy Bleed 1 | . . . . . . . 1 . . . Short Circuit 1 | . . . . . . . . . 1 . Siege Activations . | . . . . . . . . . . . Martial Activations . | . . . . . . . . . . . Shielding Activations . | . . . . . . . . . . . Robots Disrupted 2 | . . . . . . 1 . 1 . . Combat Hostiles 1 | . . . . . . . . 1 . . Robots Corrupted 6 | . . . . . 1 . . 1 4 . Combat Hostiles 5 | . . . . . 1 . . 1 3 . Parts Fried 7 | . . . . . 2 . . 1 4 . Impact Corruptions . | . . . . . . . . . . . Robots Melted 2 | . . . . . 1 . 1 . . . Combat Hostiles 2 | . . . . . 1 . 1 . . . Parts Melted 11 | . . . . . 2 . 9 . . . Heat Transferred 5532 | . 50 150 370 111 2085 409 2357 . . . Parts Sabotaged . | . . . . . . . . . . . Parts Stolen . | . . . . . . . . . . . Parts Stripped . | . . . . . . . . . . . Power Chain Reactions 7 | . 1 2 . . 2 1 . . 1 . Alert | -11 -10 -10 -10 -8 -8 -8 -6 -5 -4 -4 ------- Run | Yrd Mat Min Sub Mat Sto Rec Fac Fac Fac Upp Maximum Alert Level 1 | . . . . . 1 . . . 1 . Low Security (%) 85 | 100 100 100 . 100 72 100 100 100 30 . Level 1 14 | . . . . . 27 . . . 69 . Level 2 . | . . . . . . . . . . . Level 3 . | . . . . . . . . . . . Level 4 . | . . . . . . . . . . . Level 5 . | . . . . . . . . . . . High Security . | . . . . . . . . . . . Max Security . | . . . . . . . . . . . Peak Influence 377 | 5 124 64 . 101 275 84 126 96 377 . Initial 84 | . . 36 . 4 33 84 . 36 20 . Average 80 | . 47 19 . 30 158 7 38 35 229 . Influence Increases 3225 | 5 216 259 155 151 840 85 488 322 599 105 Destroy 0b10 Robot/C 1600 | . 120 200 80 80 500 20 220 140 240 . Destroy 0b10 Robot/NC 140 | 5 20 5 . . 35 35 15 . 25 . Destroy Leader 354 | . 22 40 . 20 118 . 80 40 34 . Allied During Kill 9 | . . 9 . . . . . . . . Trap Triggered on 0b10 10 | . 10 . . . . . . . . . Successful Hack 57 | . 5 . . . 10 7 19 . 16 . Disable Machine 405 | . 15 . . 30 60 15 60 30 195 . Destroy Structure 230 | . 24 5 . 21 42 8 34 52 44 . Lose Combat Pursuer 420 | . . . 75 . 75 . 60 60 45 105 Influence Decreases 3127 | 5 122 325 174 79 703 303 413 355 540 108 Entered New Map 360 | . . 58 16 5 48 134 . 39 22 38 Time Decay 2264 | 5 122 238 128 64 575 159 293 242 378 60 Lost Part 474 | . . . 30 10 80 10 120 74 140 10 Lost Ally 29 | . . 29 . . . . . . . . Squads Dispatched 24 | . 2 . . 1 6 . 5 5 5 . Investigation 9 | . 1 . . . 6 . . 1 1 . Extermination 7 | . . . . . . . 3 2 2 . Reinforcement 8 | . 1 . . 1 . . 2 2 2 . Assault . | . . . . . . . . . . . Garrison . | . . . . . . . . . . . Intercept . | . . . . . . . . . . . Searches Triggered . | . . . . . . . . . . . Construction Impeded 2 | . . . . . . . 1 1 . . Haulers Reinforced . | . . . . . . . . . . . Active Scanning Responses . | . . . . . . . . . . . Cargo Convoy Interrupts . | . . . . . . . . . . . Stealth | -11 -10 -10 -10 -8 -8 -8 -6 -5 -4 -4 --------- Run | Yrd Mat Min Sub Mat Sto Rec Fac Fac Fac Upp Distress Signals 8 | . . . . 1 2 3 1 . 1 . Communications Jammed . | . . . . . . . . . . . Distress Signals . | . . . . . . . . . . . Times Spotted 160 | . 9 9 9 7 46 5 22 15 29 9 Peak Tracking Total 9 | . 4 3 3 4 6 2 9 4 6 7 Tactical Retreats 17 | . . . 2 . 3 3 2 3 2 2 Traps | -11 -10 -10 -10 -8 -8 -8 -6 -5 -4 -4 ------- Run | Yrd Mat Min Sub Mat Sto Rec Fac Fac Fac Upp Traps Triggered 7 | . . . . . 4 . . 1 2 . Indirectly 1 | . . . . . . . . . 1 . Trap Hack Attempts . | . . . . . . . . . . . Triggered . | . . . . . . . . . . . Disarmed . | . . . . . . . . . . . Reprogrammed 2 | . 2 . . . . . . . . . Reused 1 | . 1 . . . . . . . . . Traps Extracted . | . . . . . . . . . . . Installed . | . . . . . . . . . . . Triggered 1 | . 1 . . . . . . . . . Machines | -11 -10 -10 -10 -8 -8 -8 -6 -5 -4 -4 ---------- Run | Yrd Mat Min Sub Mat Sto Rec Fac Fac Fac Upp Machines Disabled 27 | . 1 . . 2 4 1 4 2 13 . Max in Single Turn 5 | . 1 . . 1 1 1 4 2 5 . Garrison Access 3 | . . . . . 1 . 1 . 1 . Machines Repaired . | . . . . . . . . . . . Machines Dismantled . | . . . . . . . . . . . Machines Sabotaged . | . . . . . . . . . . . Overloaded Fab Kills . | . . . . . . . . . . . Hacking | -11 -10 -10 -10 -8 -8 -8 -6 -5 -4 -4 --------- Run | Yrd Mat Min Sub Mat Sto Rec Fac Fac Fac Upp Machines Accessed 33 | . 3 . . . 9 6 6 5 4 . Terminals 23 | . 3 . . . 8 5 2 3 2 . Fabricators 1 | . . . . . . . . 1 . . Repair Stations 2 | . . . . . . . 2 . . . Recycling Units 3 | . . . . . . . 1 1 1 . Scanalyzers . | . . . . . . . . . . . Garrison Access 3 | . . . . . 1 . 1 . 1 . Total Hacks 66 | . 8 . . . 19 11 11 10 7 . Successful 29 | . 3 . . . 7 8 7 1 3 . Failed 37 | . 5 . . . 12 3 4 9 4 . Catastrophic 8 | . 1 . . . 2 . 1 3 1 . Database Lockouts . | . . . . . . . . . . . Manual 18 | . 2 . . . 5 3 5 3 . . Terminals 49 | . 8 . . . 18 8 5 7 3 . Fabricators 1 | . . . . . . . . 1 . . Repair Stations 2 | . . . . . . . 2 . . . Recycling Units 6 | . . . . . . . 2 2 2 . Scanalyzers . | . . . . . . . . . . . Garrison Access 5 | . . . . . 1 . 2 . 2 . Terminal Hacks 15 | . 2 . . . 6 6 . . 1 . Record 2 | . . . . . . 2 . . . . Robot Schematic 1 | . . . . . 1 . . . . . Open Door 3 | . . . . . 3 . . . . . Branch Access Points 1 | . . . . . . . . . 1 . Reprogram Traps 1 | . 1 . . . . . . . . . Hauler Manifests 1 | . . . . . 1 . . . . . Zone Layout 4 | . 1 . . . 1 2 . . . . Release Object 2 | . . . . . . 2 . . . . Fabricator Hacks . | . . . . . . . . . . . Repair Station Hacks 2 | . . . . . . . 2 . . . Refit 2 | . . . . . . . 2 . . . Recycling Unit Hacks 4 | . . . . . . . 2 1 1 . Report Inventory 3 | . . . . . . . 1 1 1 . Retrieve Components 1 | . . . . . . . 1 . . . Scanalyzer . | . . . . . . . . . . . Garrison Access Hacks 3 | . . . . . 1 . 1 . 1 . Seal Access 3 | . . . . . 1 . 1 . 1 . Unauthorized Hacks 5 | . 1 . . . . 2 2 . . . Terminals 5 | . 1 . . . . 2 2 . . . Botnet 5 | . 1 . . . . 2 2 . . . Fabricators . | . . . . . . . . . . . Repair Stations . | . . . . . . . . . . . Recycling Units . | . . . . . . . . . . . Scanalyzers . | . . . . . . . . . . . Garrison Access . | . . . . . . . . . . . Data Cores Recovered 1 | . 1 . . . . . . . . . Used . | . . . . . . . . . . . Hacking Detections 21 | . 2 . . . 5 2 4 5 3 . Full Trace Events 5 | . . . . . 4 . . 1 . . Feedback Events 1 | . . . . . 1 . . . . . Corruption 1 | . . . . . 1 . . . . . Feedback Blocked . | . . . . . . . . . . . Robot Schematics Acquired 1 | . . . . . 1 . . . . . Robots Built . | . . . . . . . . . . . Authchips . | . . . . . . . . . . . Time . | . . . . . . . . . . . Total Robot Build Rating . | . . . . . . . . . . . Part Schematics Acquired . | . . . . . . . . . . . Parts Built . | . . . . . . . . . . . Authchips . | . . . . . . . . . . . Time . | . . . . . . . . . . . Total Part Build Rating . | . . . . . . . . . . . Parts Repaired . | . . . . . . . . . . . Time . | . . . . . . . . . . . Parts Recycled . | . . . . . . . . . . . Recycled Matter . | . . . . . . . . . . . Retrieved Matter . | . . . . . . . . . . . Retrieved Components 2 | . . . . . . . 2 . . . Parts Scanalyzed . | . . . . . . . . . . . Part Schematics Acquired . | . . . . . . . . . . . Parts Damaged . | . . . . . . . . . . . Bothacking | -11 -10 -10 -10 -8 -8 -8 -6 -5 -4 -4 ------------ Run | Yrd Mat Min Sub Mat Sto Rec Fac Fac Fac Upp Used RIF Installer . | . . . . . . . . . . . Robots Hacked . | . . . . . . . . . . . Non-combat . | . . . . . . . . . . . Combat . | . . . . . . . . . . . Robot Hacks Applied . | . . . . . . . . . . . Relay Couplers Released . | . . . . . . . . . . . Fabnet Peak Effective % . | . . . . . . . . . . . Robots Rewired . | . . . . . . . . . . . Allies Hacked . | . . . . . . . . . . . Hacks Repelled . | . . . . . . . . . . . Allies | -11 -10 -10 -10 -8 -8 -8 -6 -5 -4 -4 -------- Run | Yrd Mat Min Sub Mat Sto Rec Fac Fac Fac Upp Total Allies 3 | . . 3 . . . . . . . . Largest Group 3 | . . 3 . . . . . . . . Highest-Rated Group 40 | . . 40 . . . . . . . . Highest-Rated Ally 16 | . . 16 . . . . . . . . Total Orders . | . . . . . . . . . . . Ally Attacks 17 | . . 17 . . . . . . . . Total Damage 186 | . . 186 . . . . . . . . Kills 4 | . . 4 . . . . . . . . Allies Corrupted . | . . . . . . . . . . . Allies Melted . | . . . . . . . . . . . Intel | -11 -10 -10 -10 -8 -8 -8 -6 -5 -4 -4 ------- Run | Yrd Mat Min Sub Mat Sto Rec Fac Fac Fac Upp Active Infowar (turns) 6087 | 3 333 914 503 88 725 731 935 783 948 124 Sensors 753 | . . . . 28 725 . . . . . Terrain 2442 | . . . . 60 . 731 935 423 293 . Seismic 1753 | 3 333 914 503 . . . . . . . Machine Analysis 1683 | . . . . . . . . 611 948 124 Jamming 122 | . . . . . . . . . 122 . Robot Analysis Total . | . . . . . . . . . . . Derelict Logs Recovered 3 | . . 2 1 . . . . . . . Drone Launches . | . . . . . . . . . . . Drone Recoveries . | . . . . . . . . . . . Exploration | -11 -10 -10 -10 -8 -8 -8 -6 -5 -4 -4 ------------- Run | Yrd Mat Min Sub Mat Sto Rec Fac Fac Fac Upp Turns Passed 8725 | 92 333 914 724 161 1807 1483 1356 783 948 124 Spaces Moved 5280 | 54 151 478 504 117 917 801 751 558 701 248 Core 277 | 14 . . . . . . . . 15 248 Treads 2800 | 40 151 478 300 . 672 801 269 . 89 . Legs 1050 | . . . . 37 245 . 203 354 211 . Wheels 583 | . . . 204 80 . . 260 . 39 . Hover 228 | . . . . . . . 19 204 5 . Flight 342 | . . . . . . . . . 342 . Fastest Speed 40 | 50 160 160 90 90 130 166 85 85 40 50 Average Speed 130 | 131 160 160 131 102 147 166 130 103 95 50 Slowest Speed 246 | 160 160 160 160 130 200 246 196 244 157 50 Overloaded Moves . | . . . . . . . . . . . Propulsion Burnouts . | . . . . . . . . . . . Robots Hopped 2 | . . . . . . . . . 2 . Potential Cave-ins . | . . . . . . . . . . . Cave-ins Triggered . | . . . . . . . . . . . Exploration Rate (%) 42 | 4 34 97 31 13 88 97 16 15 16 54 Regions Visited 10 Branch Regions 5 Pre-discovered Areas 1 | . . . . . 1 . . . . . Known Exits Taken 6 | . . . . 1 1 1 1 1 1 . Unknown Exits Taken 4 | 1 1 1 1 . . . . . . . Scrap Searched 2 | . . 2 . . . . . . . . Spaces Dug 6 | . . . . . 5 1 . . . . Terrain Destroyed 222 | . 28 5 19 20 35 10 34 28 43 . Melee . | . . . . . . . . . . . Projectile 14 | . . . . . 9 3 2 . . . AOE 208 | . 28 5 19 20 26 7 32 28 43 . Terrain Rammed . | . . . . . . . . . . . Walls Destroyed . | . . . . . . . . . . . Machines Disabled . | . . . . . . . . . . . Actions | -11 -10 -10 -10 -8 -8 -8 -6 -5 -4 -4 --------- Run | Yrd Mat Min Sub Mat Sto Rec Fac Fac Fac Upp Total 6543 | 73 187 596 530 143 1209 935 1001 692 929 248 Wait 665 | . 4 91 . . 120 103 128 61 158 . Move 5266 | 53 150 477 503 116 916 800 750 557 696 248 Hop 2 | . . . . . . . . . 2 . Pick Up 72 | 12 3 5 2 3 20 8 9 4 6 . Fast Attach 20 | . . . . 5 12 . . 1 2 . Attach 36 | 7 . 1 4 3 3 5 5 3 5 . Detach 4 | . . . . 1 . . . 2 1 . Swap 37 | . 1 2 1 4 18 3 2 2 4 . Drop 57 | . . 4 . 2 23 7 12 3 6 . Fire 374 | 1 29 16 20 9 97 9 85 59 49 . Melee . | . . . . . . . . . . . Ram . | . . . . . . . . . . . Kick 10 | . . . . . . . 10 . . . Crush . | . . . . . . . . . . . Escape Stasis . | . . . . . . . . . . . Rewire . | . . . . . . . . . . . Trap . | . . . . . . . . . . . Miscellaneous . | . . . . . . . . . . . Route ------- -11/Scrapyard -10/Materials -10/Mines (discovered 2 exits: [*Mat] / [*Sub]) -10/Subcaves -8/Materials (discovered 3 exits: Fac x2 / *Sto) -8/Storage (discovered 2 exits: *Fac / *Rec) -8/Recycling -6/Factory -5/Factory -4/Factory (discovered 3 exits: *Upp x2 / Arm) -4/Upper Caves (discovered 1 exit: [*Upp]) History --------- Turn | Location | Event 8 | -11/Scrapyard | Discovered new exit (range 16) 93 | -11/Scrapyard | Entered Materials 301 | -10/Materials | Build established: Mutant 344 | -10/Materials | Discovered new exit (range 9) 426 | -10/Materials | Entered Mines 430 | -10/Mines | Assisted by bots powering up and referring to "LRC-V3" 458 | -10/Mines | Learned 8 Materials zone layouts 612 | -10/Mines | Learned Materials machine intel 621 | -10/Mines | Received a Rocket Launcher from a helpful Derelict 1280 | -10/Mines | Discovered new exit (range 15) 1328 | -10/Mines | Discovered new exit (range 8) 1340 | -10/Mines | Entered Subcaves 1341 | -10/Subcaves | Approached by a straggling Scientist 1374 | -10/Subcaves | Learned location of 1 exit from Materials 1420 | -10/Subcaves | Core integrity fell below 50% 1833 | -10/Subcaves | Shifting Twisted Machinery released Battle Cannon 1835 | -10/Subcaves | Shifting Twisted Machinery released Scrap Shield 1892 | -10/Subcaves | Lost 3 parts (1n1u1w) 1968 | -10/Subcaves | A Subdweller sparked back to life 1968 | -10/Subcaves | A Subdweller sparked back to life 1968 | -10/Subcaves | A Subdweller sparked back to life 1969 | -10/Subcaves | Core integrity fell below 20% 1984 | -10/Subcaves | Found Prototype Leg 2053 | -10/Subcaves | Discovered new exit (range 11) 2064 | -10/Subcaves | Entered Materials 2064 | -8/Materials | Evolved 4 slots: Propulsion x1, Utility x3 2065 | -8/Materials | Identified exit to Factory 2066 | -8/Materials | Identified exit to Storage 2067 | -8/Materials | Loaded intel: 46 machine locations 2225 | -8/Materials | Entered Storage 2305 | -8/Storage | Learned location of Armory (-4) 3056 | -8/Storage | Met 01-MTF 3125 | -8/Storage | Discovered exit to Factory (range 8) 3411 | -8/Storage | Core integrity fell below 50% 4025 | -8/Storage | Used back door to open Recycling access 4025 | -8/Storage | Discovered new exit (range 5) 4030 | -8/Storage | Identified exit to Recycling 4032 | -8/Storage | Entered Recycling 4766 | -8/Recycling | Discovered new exit (range 12) 4855 | -8/Recycling | Entered Scraplab 4904 | -8/Recycling | Found Prototype Device 4906 | -8/Recycling | Identified Scrap Engine 5468 | -8/Recycling | Found SUBCON Basin 5514 | -8/Recycling | Identified exit to Factory 5515 | -8/Recycling | Entered Factory 5515 | -6/Factory | Evolved 4 slots: Power x1, Propulsion x2, Utility x1 6116 | -6/Factory | Build established: Construct 6250 | -6/Factory | Discovered new exit (range 5) 6255 | -6/Factory | Identified exit to Factory 6567 | -6/Factory | Identified Arachnoskeleton 6568 | -6/Factory | Attached Arachnoskeleton, gained temporary slots: Propulsion x3 6600 | -6/Factory | Lost 6 parts (1p3n2w) 6632 | -6/Factory | Core integrity fell below 50% 6665 | -6/Factory | Lost 3 parts (2u1w) 6840 | -6/Factory | Build established: Mutant 6871 | -6/Factory | Entered another Factory area 6871 | -5/Factory | Evolved 2 slots: Propulsion x1, Utility x1 7072 | -5/Factory | Found Prototype Launcher 7073 | -5/Factory | Identified Tesla Bomb Launcher 7310 | -5/Factory | Lost 3 parts (1p2n) 7323 | -5/Factory | Build established: Skirmisher 7528 | -5/Factory | Discovered new exit (range 6) 7609 | -5/Factory | Identified exit to Factory 7654 | -5/Factory | Entered another Factory area 7654 | -4/Factory | Evolved 2 slots: Propulsion x1, Utility x1 7681 | -4/Factory | Lost 3 parts (1u2w) 7903 | -4/Factory | Identified exit to Upper Caves 7903 | -4/Factory | Identified exit to Armory 7942 | -4/Factory | Build established: Mutant 8403 | -4/Factory | System corruption reached 10% 8525 | -4/Factory | Lost 4 parts (1n2u1w) 8579 | -4/Factory | Core integrity fell below 50% 8601 | -4/Factory | Core integrity fell below 20% 8602 | -4/Factory | Entered Upper Caves 8604 | -4/Upper Caves | Attracted the attention of an 0b10 checkpoint 8626 | -4/Upper Caves | Lost 7 parts (2p2n3u) 8724 | -4/Upper Caves | Discovered new exit (range 13) 8726 | -4/Upper Caves | Destroyed by S-27 Virus with Autogun Last Messages --------------- 08590_ Treaded Antigrav-VTOL Exoskeleton core remains intact and functional. 08591_ Scrap Engine destroyed. 08595_ Treaded Antigrav-VTOL Exoskeleton destroyed. LOCATION=UPPER CAVES GOAL=ESCAPE 08604_ Y-64 Sentinel: "INTERCEPTING UNREGISTERED DERELICT." 08605_ Slug penetrates Wall. 08611_ System corrupted: Component data lost. 08630_ Critical hit (Burn: +50). 08636_ 97-45W(S) destroyed. 08639_ System corrupted: Component data lost. 08654_ System corrupted: Heat flow error (+266). 08670_ System corrupted: Component data lost. 08687_ System corrupted: Matter fused (-7). 08706_ System corrupted: Component data lost. 08724_ EXIT=FOUND 08726_ Imp. System Shield destroyed. Map ----- +----------------------------------------------------+ | ?????????????# #### ### ##???????? | | ?????????????# #?# ##??? ??? | | ????????????# ##?# ### ??? | | ????????????## ### #??# ??? | | ?????????????######### ##?## ?? | | ???????????????# ""##" #?## #?? | | ???????????????#" " " ### #?? | | ???????????????#" #??? | | ???????????????#"" "" #???? | | ???????????????#"""##" ?????? | | ???????????????#### #??????????? | | ??????????????????# ##?????????? | | ??????????????????# ##????????? | | ??????????????????# ### ## ########?? | | ??????????????# #?# ##### ## ##? | | ??????????????# #?# #???######## ## | | ????????????? ?# #??????????### # | | ???????????? ## ?# #????????????## # | | ???????????? #?## ?# #????????????## | | ???????????###### ???##### ##???????????# | | ????????????????# ??????## # ##?????# # | | ???????????????? ??????## #????# | | ????????????## ?????## # #????# | | ????????????# < ##### #???# | | ??????????????# ssss # ### | | ???????????????# s @ | | ???????????????## #### # # ##### | | ??????????????????????## ############# #???###### | | ???????????????????????####???????????#??????????? | | ?????????????????????????????????????????????????? | | ?????????????????????????????????????????????????? | | ?????????????????????????????????????????????????? | | ?????????????????????????????????????????????????? | | ?????????????????????????????????????????????????? | | ?????????????????????????????????????????????????? | | ?????????????????????????????????????????????????? | | ?????????????????????????????????????????????????? | | ?????????????????????????????????????????????????? | | ?????????????????????????????????????????????????? | | ?????????????????????????????????????????????????? | | ?????????????????????????????????????????????????? | | ?????????????????????????????????????????????????? | | ?????????????????????????????????????????????????? | | ?????????????????????????????????????????????????? | | | | | | | | | | | | | +----------------------------------------------------+ Best States ------------- Heat Dissipation 62 Coolant Potential 65 Energy Generation 29 Energy Capacity 346 Matter Stores 300 Matter Capacity 300 Sight Range 16 Robot Scan Range 15 Terrain Scan Range 20 Terrain Scan Density 85 Jamming Range 16 Armor Coverage 225 Resistance: KI 25 Phase Shifting 10 Evasion (%) 72 Armor Integrity Analysis 30 Recoil Reduction 4 Offensive Hacking 10 Defensive Hacking 12 Authchip Count 1 Item Schematics ----------------- None Robot Schematics ------------------ S-10 Pest | -8/Storage | Hacked Fabricated ------------ Nothing Repaired ---------- Nothing Alien Tech Used ----------------- None Achievements -------------- None Challenges ------------ None Game ------ Seed ModifiedRainbowCleaver Manual? 0 Play Time 01:12:18 Cumulative 164.8 hours Start 2025.08.18 @ 21:33:41 End 2025.08.18 @ 23:57:03 Sessions 5 Manual Loads 0 Difficulty Rogue Special Mode None Game No. 269 Rogue 269 Adventurer 0 Explorer 0 Win Type - Total 3 Types 2/0/1/0/0/0/0/0/0/0 Lore% 77 Gallery% 73 Achievement% 53 Wizard Run 0 Options --------- Layout 1 ASCII 0 Keyboard 0 Movement Mouse Keybinds 0 Fullscreen 1 Font 24/Smallcaps Map View 50x35 Zoom Use 0% Tactical HUD 1 Map Filters NONE Filters NONE Steam 1 RUN: a25c4358-a78b-441e-81d8-2b8111c94eac